Cogmind - Beta 10.1 @@@ ROGUE MODE // 2020.10.15 @ 18:33:04 Player: MTF Result: Destroyed by DAS Turret with DAS Cannon Performance ------------- Evolutions (0) 0 Regions Visited (3) 600 Robots Destroyed (15) 75 Value Destroyed (155) 155 Prototype IDs (24) 480 Alien Tech Used (0) 0 Bonus (360) 360 TOTAL SCORE: 1670 Bonus ------- Follower Combat Kills 60 Aligned with FarCom 300 Cogmind --------- Core Integrity 0/250 Matter 300/300 Energy 47/100 System Corruption 0% Temperature Cool (1) Movement Walking (210) Ox3 Location -10/Exiles Parts ------- > --- POWER (1) -------- (None) > --- PROPULSION (2) --- Advanced Myomer Leg > --- UTILITY (2) ------ Humpback > --- WEAPON (2) ------- YOLO Cannon > --- INVENTORY (24) --- Light Treads Aluminum Leg Humpback Superbattery (2000) Medium Matter Pod (100) Advanced Weapon Cycler 8R-AWN's Boregun Rocket Launcher Mining Claw Peak State ------------ > --- POWER ------------ Light Nuclear Core > --- PROPULSION ------- Aluminum Leg Advanced Myomer Leg > --- UTILITY ---------- Humpback > --- WEAPON ----------- YOLO Cannon > --- INVENTORY -------- Light Treads Aluminum Leg Superbattery Advanced Weapon Cycler 8R-AWN's Boregun Mining Claw [Rating: 37] Favorites ----------- Power Ion Engine Engine Ion Engine Power Core Light Nuclear Core Propulsion Light Treads Treads Light Treads Leg Aluminum Leg Utility Humpback Storage Humpback Weapon Assault Rifle Energy Cannon YOLO Cannon Ballistic Gun Assault Rifle Launcher Rocket Launcher Slashing Weapon Mining Claw Build | -11 -10 -10 -10 ------- Run | Scr Mat Min Exi Slots Evolved . | . . . . Power . | . . . . Propulsion . | . . . . Utility . | . . . . Weapon . | . . . . Parts Attached 21 | 2 3 . 16 Power 1 | . . . 1 Engine . | . . . . Core 1 | . . . 1 Reactor . | . . . . Propulsion 6 | . 2 . 4 Treads 4 | . 2 . 2 Leg 2 | . . . 2 Wheel . | . . . . Hover . | . . . . Flight . | . . . . Utility 4 | 1 1 . 2 Device . | . . . . Storage 4 | 1 1 . 2 Processor . | . . . . Hackware . | . . . . Protection . | . . . . Artifact . | . . . . Weapon 10 | 1 . . 9 Energy Gun . | . . . . Energy Cannon 1 | . . . 1 Ballistic Gun 7 | 1 . . 6 Ballistic Cannon . | . . . . Launcher 1 | . . . 1 Special Weapon . | . . . . Impact Weapon . | . . . . Slashing Weapon 1 | . . . 1 Piercing Weapon . | . . . . Special Melee Weapon . | . . . . Unidentified Prototypes 1 | . . . 1 Parts Lost 12 | . . . 12 Power 2 | . . . 2 Propulsion 4 | . . . 4 Utility . | . . . . Weapon 6 | . . . 6 Highest Loss Streak 7 | . . . 7 Average Slot Usage (%) 88 | . 100 100 82 Engine 12 | . 14 14 12 Treads 25 | . 20 28 24 Leg 2 | . 8 . 2 Storage 18 | . 28 28 14 Ballistic Gun 25 | . 28 28 24 Naked Turns . | . . . . Heaviest Build 103 | 17 29 29 103 Greatest Support 40 | 20 40 40 40 Greatest Overweight (x) 4 | . . . 4 Average Overweight (x) 1 | . . . 1 Largest Inventory Capacity 24 | 8 12 12 24 Average Capacity 19 | 6 9 12 22 Most Carried 24 | 6 9 12 24 Average Carried 14 | 6 7 11 16 Final Capacity 24 | 8 12 12 24 Final Carried 12 | 6 9 12 10 Class Distribution -------------------- 62% | Hauler-Mutant 37% | Mutant Dominant Class ---------------- Mutant | -10/Materials Mutant | -10/Mines Hauler-Mutant | -10/Exiles Resources | -11 -10 -10 -10 ----------- Run | Scr Mat Min Exi Matter Collected 723 | 238 108 48 329 Remotely . | . . . . Salvage Created 510 | 84 183 126 117 Parts 26 | 2 16 5 3 Haulers Intercepted 2 | . 2 . . Recyclers Shooed 1 | . . 1 . Parts Field Recycled . | . . . . Retrieved Matter . | . . . . Parts Self-Destructed . | . . . . Prevented . | . . . . Kills | -11 -10 -10 -10 ------- Run | Scr Mat Min Exi Combat Hostiles Destroyed 9 | . 2 1 6 Melee 1 | . . . 1 Guns 3 | . 2 1 . AOE 5 | . . . 5 Classes Destroyed 6 | 1 4 . 1 Tunneler 1 | . 1 . . Hauler 2 | . 2 . . Recycler 2 | 1 . 1 . Watcher 1 | . 1 . . Grunt 3 | . 2 1 . Assembled 5 | . . . 5 Best Kill Streak 5 | 1 3 1 5 Combat Bots Only 5 | . 1 1 5 Max Kills in Single Turn 2 | 1 1 1 2 Gunslinging . | . . . . Exploded 2 | . . . 2 Melee 1 | . . . 1 Uniques/NPCs Destroyed 1 | . . . 1 8R-AWN (-10/Exiles) Combat | -11 -10 -10 -10 -------- Run | Scr Mat Min Exi Damage Taken 1691 | . 48 49 1594 Core 293 | . 12 . 281 Absorbed by Shields . | . . . . Core Remaining (%) 100 | 100 . . . Volleys Fired 84 | 3 15 6 60 Largest 2 | 2 2 2 2 Hottest 100 | 40 40 40 100 Shots Fired 154 | 6 30 12 106 Gun 146 | 6 30 12 98 Cannon 3 | . . . 3 Launcher 5 | . . . 5 Special . | . . . . Kinetic 146 | 6 30 12 98 Thermal 3 | . . . 3 Explosive 5 | . . . 5 Electromagnetic . | . . . . Robot Hit Streak 13 | 3 4 4 13 Robot Miss Streak 3 | 1 3 2 2 Penetration Max . | . . . . Secondary Targets . | . . . . Shots Hit Robots 120 | 4 18 8 90 Core Hits 49 | 2 10 4 33 Critical Hits 3 | . . . 3 Critical Kills . | . . . . Critical Parts Destroyed . | . . . . Melee Attacks 7 | . . . 7 Impact . | . . . . Slashing 7 | . . . 7 Piercing . | . . . . Sneak Attacks . | . . . . Combat Hostiles . | . . . . Follow-up Attacks . | . . . . Damage Inflicted 1832 | 53 249 84 1446 Guns 1173 | 53 249 84 787 Cannons . | . . . . Explosions 520 | . . . 520 Melee 139 | . . . 139 Ramming . | . . . . Kinetic 1173 | 53 249 84 787 Thermal 129 | . . . 129 Explosive 391 | . . . 391 Electromagnetic . | . . . . Impact . | . . . . Slashing 139 | . . . 139 Piercing . | . . . . Highest Corruption . | . . . . Average Corruption . | . . . . Corruption Purged . | . . . . Overload Shots . | . . . . Overflow Damage . | . . . . Projectiles . | . . . . Explosions . | . . . . Melee . | . . . . Knockbacks . | . . . . Impact . | . . . . Kinetic . | . . . . Secondary . | . . . . Self-Inflicted Damage . | . . . . Shots . | . . . . Rammed . | . . . . Targets Rammed . | . . . . Kicked . | . . . . Crushed . | . . . . Highest Temperature 8 | . . 2 8 Average Temperature 3 | . . 2 3 Received Heat Transfer 42 | . 24 18 . Siege Activations . | . . . . Robots Corrupted . | . . . . Combat Hostiles . | . . . . Parts Fried . | . . . . Impact Corruptions . | . . . . Robots Melted . | . . . . Combat Hostiles . | . . . . Parts Melted . | . . . . Heat Transferred 160 | . . . 160 Parts Sabotaged . | . . . . Parts Stolen . | . . . . Parts Stripped . | . . . . Power Chain Reactions . | . . . . Missiles Intercepted . | . . . . Alert | -11 -10 -10 -10 ------- Run | Scr Mat Min Exi Peak Influence 196 | 5 79 196 . Initial 30 | . 3 30 . Average 62 | 3 20 79 . Maximum Alert Level . | . . . . Low Security (%) 100 | 100 100 100 . Level 1 . | . . . . Level 2 . | . . . . Level 3 . | . . . . Level 4 . | . . . . Level 5 . | . . . . High Security . | . . . . Max Security . | . . . . Squads Dispatched 1 | . 1 . . Investigation . | . . . . Extermination . | . . . . Reinforcement 1 | . 1 . . Assault . | . . . . Garrison . | . . . . Intercept . | . . . . Construction Impeded . | . . . . Haulers Reinforced . | . . . . Stealth | -11 -10 -10 -10 --------- Run | Scr Mat Min Exi Distress Signals 1 | . 1 . . Communications Jammed . | . . . . Distress Signals . | . . . . Times Spotted 45 | . 9 7 29 Peak Tracking Total 9 | . 4 3 9 Tactical Retreats 10 | . . . 10 Traps | -11 -10 -10 -10 ------- Run | Scr Mat Min Exi Traps Triggered . | . . . . Indirectly . | . . . . Trap Hack Attempts . | . . . . Triggered . | . . . . Disarmed . | . . . . Reprogrammed . | . . . . Reused . | . . . . Traps Extracted . | . . . . Installed . | . . . . Triggered . | . . . . Exploded 3 | . . . 3 Machines | -11 -10 -10 -10 ---------- Run | Scr Mat Min Exi Machines Disabled 6 | . . . 6 Max in Single Turn 1 | . . . 1 Machines Sabotaged . | . . . . Garrisons Compromised . | . . . . Overloaded Fab Kills . | . . . . Fab Network Shutdowns . | . . . . Hacking | -11 -10 -10 -10 --------- Run | Scr Mat Min Exi Machines Accessed 4 | . 2 . 2 Terminals 2 | . 2 . . Fabricators . | . . . . Repair Stations . | . . . . Recycling Units . | . . . . Scanalyzers . | . . . . Garrison Access . | . . . . Total Hacks 7 | . 5 . 2 Successful 4 | . 2 . 2 Failed 3 | . 3 . . Catastrophic . | . . . . Database Lockouts . | . . . . Manual 6 | . 5 . 1 Terminals 5 | . 5 . . Fabricators . | . . . . Repair Stations . | . . . . Recycling Units . | . . . . Scanalyzers . | . . . . Garrison Access . | . . . . Terminal Hacks 2 | . . . 2 Record 1 | . . . 1 EX-Prototype ID Bank 1 | . . . 1 Fabricator Hacks . | . . . . Repair Station Hacks . | . . . . Recycling Unit Hacks . | . . . . Scanalyzer . | . . . . Garrison Access Hacks . | . . . . Unauthorized Hacks 2 | . 2 . . Terminals 2 | . 2 . . Track 2 | . 2 . . Fabricators . | . . . . Repair Stations . | . . . . Recycling Units . | . . . . Scanalyzers . | . . . . Garrison Access . | . . . . Data Cores Recovered . | . . . . Used . | . . . . Hacking Detections 2 | . 2 . . Full Trace Events . | . . . . Feedback Events . | . . . . Feedback Blocked . | . . . . Robot Schematics Acquired . | . . . . Robots Built . | . . . . Matter . | . . . . Time . | . . . . Total Robot Build Rating . | . . . . Part Schematics Acquired . | . . . . Parts Built . | . . . . Matter . | . . . . Time . | . . . . Total Part Build Rating . | . . . . Parts Repaired . | . . . . Time . | . . . . Parts Recycled . | . . . . Recycled Matter . | . . . . Retrieved Matter . | . . . . Retrieved Components . | . . . . Parts Scanalyzed . | . . . . Part Schematics Acquired . | . . . . Parts Damaged . | . . . . Bothacking | -11 -10 -10 -10 ------------ Run | Scr Mat Min Exi Used RIF Installer . | . . . . Robots Hacked . | . . . . Non-combat . | . . . . Combat . | . . . . Robot Hacks Applied . | . . . . Relay Couplers Released . | . . . . Robots Rewired . | . . . . Allies Hacked . | . . . . Hacks Repelled . | . . . . Allies | -11 -10 -10 -10 -------- Run | Scr Mat Min Exi Total Allies 3 | . . 3 . Largest Group 3 | . . 3 . Highest-Rated Group 40 | . . 40 . Highest-Rated Ally 16 | . . 16 . Total Orders . | . . . . Ally Attacks 23 | . . 23 . Total Damage 287 | . . 287 . Kills 7 | . . 7 . Allies Corrupted . | . . . . Allies Melted . | . . . . Intel | -11 -10 -10 -10 ------- Run | Scr Mat Min Exi Robot Analysis Total . | . . . . Derelict Logs Recovered . | . . . . Drone Launches . | . . . . Drone Recoveries . | . . . . Exploration | -11 -10 -10 -10 ------------- Run | Scr Mat Min Exi Turns Passed 3361 | 27 273 768 2293 Spaces Moved 1608 | 13 135 443 1017 Core . | . . . . Treads 1442 | . 87 443 912 Legs 166 | 13 48 . 105 Wheels . | . . . . Hover . | . . . . Flight . | . . . . Fastest Speed 120 | 120 120 160 120 Average Speed 179 | 120 145 160 192 Slowest Speed 240 | 120 160 160 240 Overloaded Moves . | . . . . Propulsion Burnouts . | . . . . Robots Hopped . | . . . . Cave-ins Triggered . | . . . . Exploration Rate (%) 47 | 3 35 81 71 Regions Visited 3 Branch Regions 2 Pre-discovered Areas 1 | . . . 1 Known Exits Taken . | . . . . Unknown Exits Taken 3 | 1 1 1 . Scrap Searched 1 | . . 1 . Spaces Dug 14 | . . . 14 Terrain Destroyed 29 | . . . 29 Melee . | . . . . Projectile . | . . . . AOE 29 | . . . 29 Terrain Rammed . | . . . . Walls Destroyed . | . . . . Machines Disabled . | . . . . Actions | -11 -10 -10 -10 --------- Run | Scr Mat Min Exi Total 1933 | 17 180 494 1242 Wait 151 | . 24 33 94 Move 1605 | 12 134 442 1017 Hop . | . . . . Pick Up 42 | . 3 8 31 Fast Attach 4 | 1 . . 3 Attach 9 | . . . 9 Detach 1 | . . . 1 Swap 8 | 1 3 . 4 Drop 22 | . 1 5 16 Fire 84 | 3 15 6 60 Melee 7 | . . . 7 Ram . | . . . . Kick . | . . . . Crush . | . . . . Escape Stasis . | . . . . Rewire . | . . . . Trap . | . . . . Miscellaneous . | . . . . Route ------- -11/Scrapyard -10/Materials -10/Mines (discovered 2 exits: [*Mat] / *Exi) -10/Exiles (discovered 1 exit: [*Min]) History --------- Turn | Location | Event 12 | -11/Scrapyard | Discovered new exit (range 2) 28 | -11/Scrapyard | Entered Materials 204 | -10/Materials | Discovered new exit (range 8) 301 | -10/Materials | Entered Mines 303 | -10/Mines | Assisted by bots powering up and referring to "LRC-V3" 309 | -10/Mines | Build established: Mutant 837 | -10/Mines | Received a Rocket Launcher from a helpful Derelict 862 | -10/Mines | Discovered new exit (range 5) 1063 | -10/Mines | Deemed a non-threat by the Exiles lab entrance 1063 | -10/Mines | Discovered new exit (range 5) 1069 | -10/Mines | Entered Exiles 1109 | -10/Exiles | Met 8R-AWN 1135 | -10/Exiles | Met EX-HEX 1194 | -10/Exiles | Met EX-DEC 1399 | -10/Exiles | Learned location of Zion (-6) 1570 | -10/Exiles | Build established: Hauler-Mutant 1642 | -10/Exiles | Met EX-BIN 1672 | -10/Exiles | Aligned with FarCom system 1674 | -10/Exiles | Given EX-Vault access code 1720 | -10/Exiles | Opened EX-Vault 1736 | -10/Exiles | Found Superbattery 1749 | -10/Exiles | Found Firepult 1752 | -10/Exiles | Found YOLO Cannon 1795 | -10/Exiles | Warned to stay clear of 0b10 Research branches 2463 | -10/Exiles | Discovered new exit (range 14) 2860 | -10/Exiles | Attacked by the Exiles 3026 | -10/Exiles | Lost 3 parts (1n2w) 3055 | -10/Exiles | Core integrity fell below 50% 3114 | -10/Exiles | Destroyed 8R-AWN 3117 | -10/Exiles | Found Prototype Ballistic Gun 3123 | -10/Exiles | Lost 7 parts (1p2n4w) 3361 | -10/Exiles | Core integrity fell below 20% 3362 | -10/Exiles | Destroyed by DAS Turret with DAS Cannon Last Messages --------------- 03134_ Dropped Humpback. 03134_ Extracted 12 energy. 03142_ Acquired Prototype Leg. 03142_ Identified Adv. Myomer Leg. 03145_ Acquired 9 matter. 03149_ Extracted 11 matter. 03151_ Acquired Humpback. 03153_ Extracted 10 matter. 03170_ Acquired Aluminum Leg. 03175_ Acquired Prototype Ballistic Gun. 03176_ Extracted 5 energy. 03178_ Acquired Superbattery. 03179_ Extracted 10 matter. 03180_ Acquired Med. Matter Pod. 03183_ Acquired Humpback. 03186_ Acquired Rocket Launcher. 03212_ Acquired 3 matter. 03238_ Lgt. Nuclear Core destroyed. 03238_ Knocked back. 03358_ Aluminum Leg destroyed. Map ----- +----------------------------------------------------+ | ?????????????????????????????????????#" ## | | ?????????????????????????????????????#""""""?# | | ?????????????????????????????????????##"###??# | | ?????????????????????????????????????????????# | | ?????????????????????????????????????????????# | | ????????????????????????????????????????????## | | ????????????#######?????????????????????????#" | | ######??????# *"#?????????????????????????#" | | #""##?????# "#?????????????????????????#" | | #?????# "#?????????????????????????#" | | ##???## ""#????????????##???????????#" | | #####" ""#???????????? """????????#" | | ##" ""#????????????" """#???????## | | #" ###????????????" #????????# | | ## ####??????????"" #????????#" | | ##### #####??????"" "#????????#" | | ????### # # # #?????? ""?????????#" | | ######" # # ##???????" "?????????##" | | !!"""" # #???????# #????????##"" | | ####???### ###?######"" | | ! # ## """#####X# #"###""""""" | | !## """""" " "" | | !"" ""### "# "" """ " | | #######" #?###### " " | | ?????? #??????### | | ????? #????????#;; @ | | ????# #????????#### | | ????## ##???????????## | | ????? ##?????????????#; | | ????? ???????????????#; """""" | | ????# #???????????????#; ######"" | | ????# ????????????????#" "##????### | | ???? #????????????????#""" """##???????? | | ???? ????????????????#""" """##????????? | | ???? ????????????????#""" ""#?????????? | | ?????????????????????#"" ########??## | | ?????????????????????#"" ## ####" | | ?????????????????????#"" """" | | ?????????????????????##" t | | ??????????????????????#"" | | ??????????????????????## | | ???????????????????????#" " | | ???????????????????????#"""" ""## # | | ???????????????????????#"" ""#### # | | ????????????????????????" """"##??# # | | ????????????????????????""" """#??## # | | ???????????????????????## ""##??# | | ????????????????????????#"" """##???#" | | ?????????????????????????#""" ##????#" | | ??????????????????????????#"""" ##?????#!!"" | +----------------------------------------------------+ Best States ------------- Heat Dissipation 25 Energy Generation 14 Energy Capacity 250 Matter Stores 300 Matter Capacity 300 Sight Range 16 Terrain Scan Density 10 Evasion (%) 40 Recoil Reduction 2 Item Schematics ----------------- None Robot Schematics ------------------ None Fabricated ------------ Nothing Alien Tech Used ----------------- None Achievements -------------- None Challenges ------------ None Game ------ Seed PoweredInertialFalx Manual? 0 Play Time 00:28:34 Cumulative 926.5 hours Start 2020.10.15 @ 17:52:52 End 2020.10.15 @ 18:33:04 Sessions 1 Manual Loads 0 Difficulty Rogue Special Mode None Game No. 325 Rogue 325 Adventurer 0 Explorer 0 Win Type - Total 49 Types 11/14/9/3/1/1/8/1/1 Lore% 97 Gallery% 95 Achievement% 84 Wizard Run 0 Options --------- ASCII 0 Keyboard 0 Movement Numpad Keybinds 0 Fullscreen 2 Font 24/Smallcaps Map View 76x50 Tactical HUD 1 Map Filters NONE Filters NONE Steam 1 RUN: 25f4f7ae-383d-40ca-a7a2-4928b62bf62a